fUSD/lending_fUSD_20260111
["ID","MTS","AMOUNT","RATE_DAILY","PERIOD"]
[401279604,1768097462377,-500.0,0.00032877,7]
[401279605,1768097462392,-500.0,0.00032877,7]
[401279606,1768097462406,-500.0,0.00032877,7]
[401279607,1768097462421,-500.0,0.00032877,7]
[401279608,1768097462436,-500.0,0.00032877,7]
[401279609,1768097462450,-500.0,0.00032877,7]
[401279610,1768097462464,-200.0,0.00032877,7]
[401279611,1768097462479,-500.0,0.00032877,7]
[401279612,1768097462494,-500.0,0.00032877,7]
[401279613,1768097462509,-441.0,0.00032877,2]
[401279614,1768097462522,-150.0,0.0003288,7]
[401279615,1768097462538,-2733.99,0.000329,30]
[401279616,1768097462552,-441.0,0.00032932,2]
[401279617,1768097462566,-152.0,0.0003295,10]
[401279618,1768097462581,-441.0,0.00032987,2]
[401279619,1768097462594,-162.0,0.00033,14]
[401279620,1768097462608,-51134.80843235,0.00033,2]
[401279621,1768097462623,-26294.60332759,0.00033,2]
[401279622,1768097462637,-51415.09092486,0.00033,2]
[401279623,1768097462651,-153.04161839,0.00033,2]
[401279624,1768097462665,-5100.61,0.00033,2]
[401279625,1768097462680,-3839.06731378,0.00033,13]
[401279626,1768097462695,-46082.85360122,0.00033,10]
[401279627,1768097463711,-566.0,0.00020803,2]
[401279628,1768097463721,-1004.42526434,0.0002693,2]
[401279629,1768097463730,-137.38773566,0.00033,10]
[401279630,1768097463762,-266.02237476,0.00015068,2]
[401279631,1768097463771,-566.0,0.00023803,2]
[401279632,1768097463781,-43.27762524,0.00026803,2]
[401279633,1768097463810,-522.72237476,0.00026803,2]
[401279634,1768097463820,-566.0,0.00029803,2]
[401279635,1768097463829,-566.0,0.00032803,2]
[401279636,1768097463838,-1002.3918508,0.00033,10]
[401279637,1768097463849,-3706.73264783,0.00033,10]
[401279638,1768097463860,-712.50608253,0.00033,10]
[401279639,1768097463872,-5865.23560611,0.00033,10]
[401279640,1768097463882,-5866.65708772,0.00033,10]
[401279641,1768097463894,-5069.05991764,0.00033,10]
[401279642,1768097463908,-6581.25705161,0.00033,10]
[401279643,1768097463922,-7193.83972016,0.00033,10]
[401279644,1768097463935,-3649.82327439,0.00033,10]
[401279645,1768097463947,-28976.10513994,0.00033,10]
[401279646,1768097463958,-31698.52604113,0.00033,10]
[401279647,1768097463971,-12356.48532603,0.00033,10]
[401279648,1768097463982,-975.39377998,0.00033,10]
[401279649,1768097473221,500.0,0.0001417,2]
[401279650,1768097473392,500.0,0.00014225,2]
[401279697,1768097624680,-325.766665,0.0001418,2]
[401279699,1768097626873,200.26578946,0.0001418,2]
[401279704,1768097632595,165.33,0.00025702,120]
[401279707,1768097636860,200.26578946,0.0001418,2]
[401279709,1768097751061,-217.17777666,0.0001417,2]
[401279710,1768097760294,775.5,0.00027397,120]
[401279717,1768097796242,-150.19934213,0.0001417,2]
[401279718,1768097796274,-150.19934213,0.0001417,2]
[401279720,1768097798941,358.75,0.00016,14]
[401279725,1768097864182,216.06,0.00013937,2]
[401279726,1768097893553,-217.17777665,0.0001417,2]
[401279728,1768097956806,-425.2080073,0.0001417,2]
[401279729,1768097964833,-243.56551682,0.0001417,2]
[401279730,1768097964856,-9512.87896636,0.0001417,2]
[401279731,1768097964988,-150.19934206,0.0001417,2]
[401279732,1768097965018,-150.19934206,0.0001417,2]
[401279733,1768098044563,200.0,0.00013821,2]
[401279734,1768098049207,9800.01,0.00013821,2]
[401279735,1768098049229,10000.01,0.00013821,2]
[401279736,1768098049251,10000.01,0.00013821,2]
[401279737,1768098049273,10000.01,0.00013821,2]
[401279738,1768098049296,10000.01,0.00013821,2]
[401279739,1768098049323,10000.01,0.00013821,2]
[401279740,1768098049345,2813.73,0.00013821,2]
[401279742,1768098162754,-150.0,0.0001397,2]
[401279743,1768098162776,-612.42091643,0.0001397,2]
[401279744,1768098164276,-442.57908357,0.0001397,2]
[401279745,1768098164299,-5.57760196,0.0001397,2]
[401279746,1768098166814,-144.42239804,0.0001397,2]
[401279747,1768098166838,-233.97048591,0.0001397,2]
[401279748,1768098169000,-167.07827963,0.0001397,2]
[401279749,1768098171839,-98.95123446,0.0001397,2]
[401279750,1768098171863,-88.82883079,0.0001397,2]
[401279751,1768098174050,-73.37846448,0.0001397,2]
[401279752,1768098174073,-150.0,0.0001397,2]
[401279753,1768098174095,-230.35317711,0.0001397,2]
[401279760,1768098175683,-269.64682289,0.0001397,2]
[401279761,1768098175707,-26.74976225,0.0001397,2]
[401279762,1768098177329,-249.60172258,0.0001397,2]
[401279763,1768098180624,-223.64851517,0.0001397,2]
[401279764,1768098180648,-208.30307507,0.00014025,2]
[401279765,1768098180671,-20.08977696,0.00014025,2]
[401279766,1768098182232,-444.09469544,0.00014025,2]
[401279770,1768098184998,-167.77555432,0.00014025,2]
[401279782,1768098188187,-243.14365421,0.00014025,2]
[401279783,1768098190399,-179.89631907,0.00014025,2]
[401279784,1768098190422,-12.78521758,0.00014025,2]
[401279785,1768098191858,-137.21478242,0.00014025,2]
[401279786,1768098191880,-239.83158984,0.00014025,2]
[401279787,1768098194304,-260.16841016,0.00014025,2]
[401279788,1768098194327,-33.15161658,0.00014025,2]
[401279789,1768098196573,-116.84838342,0.00014025,2]
[401279790,1768098196599,-191.07759636,0.00014025,2]
[401279791,1768098200190,-207.08957226,0.00014025,2]
[401279792,1768098203920,-101.83283138,0.00014025,2]
[401279793,1768098203945,-180.9970252,0.00014025,2]
[401279794,1768098217696,1552.59,6.773e-05,2]
[401279795,1768098217882,1552.59,7.115e-05,2]
[401279796,1768098218112,1552.59,7.458e-05,2]
[401279797,1768098218323,1552.59,7.8e-05,2]
[401279798,1768098218519,1552.59,8.143e-05,2]
[401279799,1768098218733,1552.59,8.485e-05,2]
[401279800,1768098218933,684.47,8.828e-05,2]
[401279801,1768098218958,868.12,8.828e-05,2]
[401279802,1768098219129,1552.59,9.17e-05,2]
[401279803,1768098219343,1552.59,9.513e-05,2]
[401279807,1768098219591,1552.59,9.855e-05,2]
[401279808,1768098219806,1552.59,0.00010198,2]
[401279809,1768098220629,1552.59,0.0001054,2]
[401279810,1768098220673,1368.94,0.00010883,2]
[401279811,1768098220697,183.65,0.00010883,2]
[401279812,1768098220740,1552.59,0.00011225,2]
[401279813,1768098220834,1552.59,0.00011568,2]
[401279814,1768098221025,1552.59,0.0001191,2]
[401279815,1768098221230,1552.59,0.00012253,2]
[401279816,1768098221448,1552.59,0.00012595,2]
[401279817,1768098221643,1552.59,0.00012938,2]
[401279818,1768098221847,500.82,0.0001328,2]
[401279819,1768098221869,1051.77,0.0001328,2]
[401279820,1768098223161,-319.0029748,0.00014025,2]
[401279821,1768098246875,1500.0,0.00013298,2]
[401279822,1768098251201,4741.21,0.00013298,2]
[401279823,1768098257410,-298.64658488,0.00014008,2]
[401279824,1768098260064,-337.98567243,0.00014008,2]
[401279825,1768098282702,-152.74964676,0.0001397,2]
[401279826,1768098282726,-12.79035324,0.0001397,2]
[401279827,1768098284812,-229.16887849,0.0001397,2]
[401279828,1768098286413,-258.04076827,0.0001397,2]
[401279829,1768098286435,-14.09700956,0.0001397,2]
[401279830,1768098288600,-146.36929788,0.0001397,2]
[401279831,1768098288624,-56.53813418,0.0001397,2]
[401279832,1768098292014,-189.3168,0.0001397,2]
[401279833,1768098292237,150.0,0.00013233,2]
[401279834,1768098293549,-224.74559645,0.0001397,2]
[401279835,1768098296639,-29.39946937,0.0001397,2]
[401279836,1768098296662,-212.52716562,0.0001397,2]
[401279837,1768098297201,-178.25568144,0.0001397,2]
[401279838,1768098298676,-321.74431856,0.0001397,2]
[401279839,1768098298698,-155.85892198,0.0001397,2]
[401279840,1768098298721,-63.59233886,0.0001398,2]
[401279841,1768098301999,-226.45407134,0.0001398,2]
[401279842,1768098303470,-247.83133268,0.0001398,2]
[401279843,1768098305386,-40.4397362,0.0001398,2]
[401279844,1768098305414,-113.69994669,0.00014008,2]
[401279845,1768098305441,-220.23941475,0.00014025,2]
[401279846,1768098307683,-201.40066064,0.00014025,2]
[401279847,1768098310822,-156.67740367,0.00014025,2]
[401279848,1768098310847,-17.61812559,0.00014025,2]
[401279849,1768098312949,-375.70447074,0.00014025,2]
[401279850,1768098317938,-106.67740367,0.00014025,2]
[401279851,1768098317961,-76.44516799,0.00014025,2]
[401279852,1768098319724,-197.89591525,0.00014025,2]
[401279853,1768098321223,-188.76767996,0.00014025,2]
[401279854,1768098322781,-36.8912368,0.00014025,2]
[401279855,1768098322805,-327.69669949,0.00014025,2]
[401279860,1768098386009,1949.89,0.00013267,2]
[401279865,1768098448236,-172.30330051,0.00014025,2]
[401279866,1768098448261,-196.7379685,0.0001403,2]
[401279867,1768098452268,-53.2620315,0.0001403,2]
[401279868,1768098452292,-103.16776339,0.00014036,2]
[401279872,1768098463441,1658.91,0.00013,2]
[401279873,1768098463465,2763.95908886,0.00013,2]
[401279875,1768098507664,-218.4146248,0.0001397,2]
[401279878,1768098509230,-162.93062352,0.0001397,2]
[401279879,1768098511298,580.65,0.00013239,2]
[401279880,1768098511337,-161.39838316,0.0001397,2]
[401279885,1768098515197,-255.04792585,0.0001397,2]
[401279886,1768098516645,-218.20844267,0.0001397,2]
[401279887,1768098516669,-58.52855199,0.00014025,2]
[401279889,1768098518309,-436.50336321,0.00014025,2]
[401279891,1768098521389,-315.00656508,0.00014025,2]
[401279892,1768098526704,-205.96151972,0.00014025,2]
[401279893,1768098526726,-69.36983527,0.00014036,2]
[401279894,1768098552839,-22.46240134,0.00014036,2]
[401279895,1768098552864,-214.7707599,0.00014041,2]
[401279896,1768098575506,171.91,0.00010595,2]
[401279897,1768098626217,999.0,0.00013168,3]
[401279898,1768098627584,-150.0,0.00013963,2]
[401279899,1768098627608,-102.16866732,0.00013963,2]
[401279900,1768098630243,-173.21574077,0.00013963,2]
[401279908,1768098631465,-224.61559191,0.00013963,2]
[401279910,1768098631475,-350.36595989,0.00013969,2]
[401279916,1768098631574,-227.95151917,0.00013969,2]
[401279917,1768098631588,-172.88216606,0.00014018,2]
[401279918,1768098631599,-107.56188193,0.00014018,2]
[401279919,1768098631612,-392.43811807,0.00014018,2]
[401279920,1768098631621,-45.96106703,0.00014041,2]
[401279921,1768098631634,-39.26817307,0.00014041,2]
[401279922,1768098631644,-195.0,0.00014047,2]
[401279923,1768098631654,-118.33062022,0.00014049,2]
[401279924,1768098631687,-131.66937978,0.00014049,2]
[401279925,1768098631698,-309.2010049,0.00014054,2]
[401279926,1768098631708,-212.52961532,0.00014058,2]
[401279927,1768098637539,-442.98081506,0.00014058,2]
[401279928,1768098637549,-267.16358066,0.00014058,2]
[401279929,1768098637559,-500.0,0.00014058,2]
[401279930,1768098637568,-500.0,0.00014058,2]
[401279931,1768098637578,-6.8638409,0.00014058,2]
[401279932,1768098637589,-493.1361591,0.00014058,2]
[401279933,1768098637599,-175.50723282,0.00014058,2]
[401279934,1768098637609,-172.77462412,0.00014058,2]
[401279935,1768098637619,-500.0,0.00014058,2]
[401279936,1768098637628,-500.0,0.00014058,2]
[401279937,1768098637637,-238.58368396,0.00014058,2]
[401279938,1768098637649,-370.90320309,0.00014058,2]
[401279939,1768098637658,-80.25184452,0.00014058,2]
[401279940,1768098637670,-419.74815548,0.00014058,2]
[401279941,1768098637683,-500.0,0.00014058,2]
[401279942,1768098637693,-500.0,0.00014058,2]
[401279943,1768098637703,-500.0,0.00014058,2]
[401279944,1768098637713,-550.02443406,0.00014058,2]
[401279945,1768098637722,-500.0,0.00014058,2]
[401279946,1768098637731,-500.0,0.00014058,2]
[401279947,1768098637741,-500.0,0.00014058,2]
[401279948,1768098637751,-17.95435387,0.00014058,2]
[401279949,1768098637762,-571.04828063,0.00014058,2]
[401279950,1768098637772,-500.0,0.00014058,2]
[401279951,1768098637782,-500.0,0.00014058,2]
[401279952,1768098637792,-500.0,0.00014058,2]
[401279953,1768098637801,-500.0,0.00014058,2]
[401279954,1768098637811,-500.0,0.00014058,2]
[401279955,1768098637821,-502.18372656,0.00014058,2]
[401279956,1768098637831,-175.26020156,0.00014058,2]
[401279957,1768098637842,-500.0,0.00014058,2]
[401279958,1768098637852,-500.0,0.00014058,2]
[401279959,1768098637861,-500.0,0.00014058,2]
[401279960,1768098637871,-500.0,0.00014058,2]
[401279961,1768098637881,-500.0,0.00014058,2]
[401279962,1768098637891,-362.57120615,0.00014058,2]
[401279963,1768098637901,-500.0,0.00014058,2]
[401279964,1768098637911,-500.0,0.00014058,2]
[401279965,1768098637921,-500.0,0.00014058,2]
[401279966,1768098637931,-500.0,0.00014058,2]
[401279967,1768098637941,-500.0,0.00014058,2]
[401279968,1768098637950,-500.0,0.00014058,2]
[401279969,1768098637960,-150.0,0.00014058,2]
[401279970,1768098637971,-500.0,0.00014058,2]
[401279971,1768098637980,-500.0,0.00014058,2]
[401279972,1768098637990,-500.0,0.00014058,2]
[401279973,1768098637999,-500.0,0.00014058,2]
[401279974,1768098638009,-500.0,0.00014058,2]
[401279975,1768098638019,-500.0,0.00014058,2]
[401279976,1768098638028,-500.0,0.00014058,2]
[401279977,1768098638037,-9757.38097778,0.00014059,2]
[401279978,1768098638049,-1064.40417485,0.00014059,2]
[401279979,1768098638060,-268.66432624,0.00014059,2]
[401279980,1768098638073,-6424.85942953,0.00014059,2]
[401279984,1768098639801,-812.09898005,0.00014059,2]
[401279985,1768098639856,-981672.59211155,0.00014059,2]
[401279986,1768098639866,-4794.0,0.00014067,2]
[401279987,1768098639875,-1200.0,0.00014069,2]
[401279988,1768098639885,-1200.0,0.00014069,2]
[401279989,1768098639895,-300.0,0.00014069,2]
[401279990,1768098639904,-4109.4312,0.00014069,2]
[401279991,1768098639914,-8282.96454391,0.0001407,2]
[401279992,1768098639924,-500.0,0.00014073,2]
[401279993,1768098639936,-158.5859407,0.0001408,2]
[401279994,1768098639946,-458.04838682,0.0001408,2]
[401279995,1768098639957,-503.14661257,0.0001408,2]
[401279996,1768098639968,-500.0,0.0001408,2]
[401279997,1768098639979,-500.0,0.0001408,2]
[401279998,1768098639989,-500.0,0.0001408,2]
[401279999,1768098640000,-1016.0,0.0001408,2]
[401280000,1768098640010,-500.0,0.00014127,2]
[401280001,1768098640022,-345.14342338,0.00014134,2]
[401280002,1768098640031,-500.0,0.00014134,2]
[401280003,1768098640041,-500.0,0.00014134,2]
[401280004,1768098640050,-1016.0,0.00014134,2]
[401280005,1768098640060,-2500.0,0.00014145,2]
[401280006,1768098640069,-150.0,0.00014158,2]
[401280007,1768098640078,-9999.99,0.00014159,2]
[401280008,1768098640088,-39761.5,0.00014159,2]
[401280009,1768098640097,-150.99,0.00014169,2]
[401280010,1768098640106,-9999.99,0.00014169,2]
[401280011,1768098640115,-150.99,0.00014169,2]
[401280013,1768098640125,-999.99,0.00014169,2]
[401280014,1768098640134,-2002.18,0.00014169,2]
[401280015,1768098640143,-299.99,0.00014169,2]
[401280016,1768098640153,-500.0,0.00014169,2]
[401280017,1768098640162,-464.4,0.0001417,2]
[401280018,1768098640172,-20124.8,0.0001417,2]
[401280019,1768098640181,-13969.27,0.0001417,2]
[401280020,1768098640191,-499.99,0.0001417,2]
[401280021,1768098640199,-9999.99,0.0001417,2]
[401280022,1768098640209,-500.0,0.00014182,2]
[401280023,1768098640219,-500.0,0.00014189,2]
[401280024,1768098640228,-511.26067782,0.00014189,2]
[401280025,1768098640237,-1016.0,0.00014189,2]
[401280026,1768098640247,-454.04310579,0.00014199,2]
[401280027,1768098640256,-210.64483907,0.00014199,2]
[401280028,1768098640265,-666.52642717,0.00014234,2]
[401280029,1768098640275,-151.0,0.00014237,2]
[401280030,1768098640285,-151.0,0.00014237,2]
[401280031,1768098640294,-151.0,0.00014237,2]
[401280032,1768098640304,-151.0,0.00014237,2]
[401280033,1768098640314,-151.0,0.00014237,2]
[401280034,1768098640324,-151.0,0.00014237,2]
[401280035,1768098640334,-151.0,0.00014237,2]
[401280036,1768098640343,-151.0,0.00014237,2]
[401280037,1768098640353,-151.0,0.00014237,2]
[401280038,1768098640363,-151.0,0.00014237,2]
[401280039,1768098640372,-151.0,0.00014237,2]
[401280040,1768098640382,-151.0,0.00014237,2]
[401280041,1768098640392,-151.0,0.00014237,2]
[401280042,1768098640402,-151.0,0.00014237,2]
[401280043,1768098640413,-151.0,0.00014237,2]
[401280044,1768098640422,-151.0,0.00014237,2]
[401280045,1768098640432,-151.0,0.00014237,2]
[401280046,1768098640442,-151.0,0.00014237,2]
[401280047,1768098640453,-151.0,0.00014237,2]
[401280048,1768098640464,-151.0,0.00014237,2]
[401280049,1768098640474,-500.0,0.00014237,2]
[401280050,1768098640483,-383.65668986,0.00014243,2]
[401280051,1768098640493,-167.203,0.00014244,2]
[401280052,1768098640503,-500.0,0.00014244,2]
[401280053,1768098640512,-1016.0,0.00014244,2]
[401280054,1768098640521,-500.0,0.00014244,2]
[401280055,1768098640531,-500.0,0.00014244,2]
[401280056,1768098640540,-256.02295754,0.00014244,2]
[401280057,1768098640550,-514.27279391,0.00014244,2]
[401280058,1768098640559,-500.0,0.00014244,2]
[401280059,1768098640569,-500.0,0.00014244,2]
[401280060,1768098640579,-500.0,0.00014244,2]
[401280061,1768098640588,-500.0,0.00014244,2]
[401280062,1768098640597,-512.95515416,0.00014244,2]
[401280063,1768098640607,-500.0,0.00014244,2]
[401280064,1768098640617,-500.0,0.00014244,2]
[401280065,1768098640626,-502.48470698,0.00014244,2]
[401280066,1768098640636,-500.0,0.00014244,2]
[401280067,1768098640645,-500.0,0.00014244,2]
[401280068,1768098640655,-500.0,0.00014244,2]
[401280069,1768098640665,-500.0,0.00014244,2]
[401280070,1768098640677,-500.0,0.00014244,2]
[401280071,1768098640688,-500.0,0.00014244,2]
[401280072,1768098640698,-500.0,0.00014244,2]
[401280073,1768098640708,-500.0,0.00014244,2]
[401280074,1768098640717,-509.03,0.00014244,2]
[401280075,1768098640729,-509.03,0.00014244,2]
[401280076,1768098640738,-509.03,0.00014244,2]
[401280077,1768098640748,-509.03,0.00014244,2]
[401280078,1768098640759,-623.48676618,0.00014244,2]
[401280079,1768098640769,-500.0,0.00014244,2]
[401280080,1768098640778,-500.0,0.00014244,2]
[401280081,1768098640790,-500.0,0.00014244,2]
[401280082,1768098640801,-447.79190405,0.00014244,2]
[401280083,1768098640810,-500.0,0.00014244,2]
[401280084,1768098640820,-500.0,0.00014244,2]
[401280085,1768098640829,-500.0,0.00014244,2]
[401280086,1768098640839,-504.75868902,0.00014244,2]
[401280087,1768098640848,-500.0,0.00014244,2]
[401280088,1768098640857,-536.38716988,0.00014244,2]
[401280089,1768098640866,-500.0,0.00014244,2]
[401280090,1768098640875,-500.0,0.00014244,2]
[401280091,1768098640884,-502.70237126,0.00014244,2]
[401280092,1768098640894,-1335.51,0.00014244,2]
[401280093,1768098640903,-500.0,0.00014244,2]
[401280094,1768098640912,-500.0,0.00014244,2]
[401280095,1768098640922,-500.0,0.00014244,2]
[401280096,1768098640931,-500.0,0.00014244,2]
[401280097,1768098640943,-500.0,0.00014244,2]
[401280098,1768098640952,-545.25,0.00014244,2]
[401280099,1768098640962,-545.25,0.00014244,2]
[401280100,1768098640972,-545.25,0.00014244,2]
[401280101,1768098640981,-545.25,0.00014244,2]
[401280102,1768098640990,-500.0,0.00014244,2]
[401280103,1768098641000,-500.0,0.00014244,2]
[401280104,1768098641010,-500.0,0.00014244,2]
[401280105,1768098641021,-500.0,0.00014244,2]
[401280106,1768098641030,-500.0,0.00014244,2]
[401280107,1768098641040,-500.0,0.00014244,2]
[401280108,1768098641050,-500.0,0.00014244,2]
[401280109,1768098641060,-500.0,0.00014244,2]
[401280110,1768098641069,-1342.735,0.00014244,2]
[401280111,1768098641080,-500.0,0.00014244,2]
[401280112,1768098641090,-500.0,0.00014244,2]
[401280113,1768098641101,-500.0,0.00014244,2]
[401280114,1768098641111,-500.0,0.00014244,2]
[401280115,1768098641121,-500.0,0.00014244,2]
[401280116,1768098641131,-500.0,0.00014244,2]
[401280117,1768098641140,-500.0,0.00014244,2]
[401280118,1768098641149,-500.0,0.00014244,2]
[401280119,1768098641159,-500.0,0.00014244,2]
[401280120,1768098641168,-542.67459147,0.00014244,2]
[401280121,1768098641177,-500.0,0.00014244,2]
[401280122,1768098641187,-556.98175584,0.00014244,2]
[401280123,1768098641196,-500.0,0.00014244,2]
[401280124,1768098641206,-500.0,0.00014244,2]
[401280125,1768098641215,-500.0,0.00014244,2]
[401280126,1768098641224,-500.0,0.00014244,2]
[401280127,1768098641234,-500.0,0.00014244,2]
[401280128,1768098641243,-500.0,0.00014244,2]
[401280129,1768098641252,-500.0,0.00014244,2]
[401280130,1768098641261,-500.0,0.00014244,2]
[401280131,1768098641272,-500.0,0.00014244,2]
[401280132,1768098641281,-500.0,0.00014244,2]
[401280133,1768098641291,-500.0,0.00014244,2]
[401280134,1768098641300,-500.0,0.00014244,2]
[401280135,1768098641309,-500.0,0.00014244,2]
[401280136,1768098641318,-500.0,0.00014244,2]
[401280137,1768098641328,-500.0,0.00014244,2]
[401280138,1768098641337,-500.0,0.00014244,2]
[401280139,1768098641346,-500.0,0.00014244,2]
[401280140,1768098641355,-500.0,0.00014244,2]
[401280141,1768098641364,-500.0,0.00014244,2]
[401280142,1768098641373,-500.0,0.00014244,2]
[401280143,1768098641382,-383.65668986,0.00014244,2]
[401280144,1768098641391,-383.65668986,0.00014244,2]
[401280145,1768098641400,-285.06955538,0.00014291,2]
[401280146,1768098641410,-500.0,0.00014292,2]
[401280147,1768098641419,-500.0,0.00014299,2]
[401280148,1768098641428,-1016.0,0.00014299,2]
[401280149,1768098641438,-33591.7849,0.00014345,2]
[401280150,1768098641446,-1000.0,0.00014345,2]
[401280151,1768098641455,-500.0,0.00014347,2]
[401280152,1768098641464,-463.72482846,0.00014351,2]
[401280153,1768098641474,-654.91785865,0.00014351,2]
[401280154,1768098641484,-847.4499,0.00014351,2]
[401280155,1768098641494,-500.0,0.00014354,2]
[401280156,1768098641503,-1016.0,0.00014354,2]
[401280157,1768098641513,-500.0,0.00014401,2]
[401280158,1768098641522,-1010.95150876,0.00014403,2]
[401280159,1768098641532,-500.0,0.00014408,2]
[401280160,1768098641541,-1016.0,0.00014408,2]
[401280161,1768098641551,-509.03,0.00014443,2]
[401280162,1768098641560,-500.0,0.00014443,2]
[401280163,1768098641569,-261.10675148,0.00014444,2]
[401280164,1768098641579,-500.0,0.00014444,2]
[401280165,1768098641588,-500.0,0.00014444,2]
[401280166,1768098641600,-500.0,0.00014444,2]
[401280167,1768098641609,-500.0,0.00014444,2]
[401280168,1768098641620,-500.0,0.00014444,2]
[401280169,1768098641631,-500.0,0.00014444,2]
[401280170,1768098641640,-500.0,0.00014444,2]
[401280171,1768098641651,-500.0,0.00014444,2]
[401280172,1768098641662,-506.06363535,0.00014444,2]
[401280173,1768098641671,-500.0,0.00014456,2]
[401280174,1768098641683,-500.0,0.00014463,2]
[401280175,1768098641693,-1016.0,0.00014463,2]
[401280176,1768098641703,-501.59013157,0.00014473,2]
[401280177,1768098641713,-500.0,0.00014473,2]
[401280178,1768098641723,-501.1018115,0.00014473,2]
[401280179,1768098641732,-500.0,0.00014473,2]
[401280180,1768098641741,-166.87374433,0.00014473,2]
[401280181,1768098641752,-500.0,0.00014473,2]
[401280182,1768098641761,-503.69857476,0.00014473,2]
[401280183,1768098641771,-500.0,0.00014473,2]
[401280184,1768098641780,-500.0,0.00014473,2]
[401280185,1768098641789,-500.0,0.00014473,2]
[401280186,1768098641799,-540.30872116,0.00014473,2]
[401280187,1768098641808,-169.14530325,0.00014473,2]
[401280188,1768098641818,-500.0,0.00014473,2]
[401280189,1768098641827,-500.0,0.00014473,2]
[401280190,1768098641836,-500.76760994,0.00014473,2]
[401280191,1768098641851,-500.0,0.00014473,2]
[401280192,1768098641861,-500.0,0.00014473,2]
[401280193,1768098641870,-500.0,0.00014473,2]
[401280194,1768098641879,-500.0,0.00014473,2]
[401280195,1768098641889,-500.0,0.00014473,2]
[401280196,1768098641898,-500.0,0.00014473,2]
[401280197,1768098641907,-500.0,0.00014473,2]
[401280198,1768098641916,-500.26339188,0.00014473,2]
[401280199,1768098641926,-500.0,0.00014473,2]
[401280200,1768098641936,-503.4081818,0.00014473,2]
[401280201,1768098641945,-500.15222599,0.00014473,2]
[401280202,1768098641957,-162.5649796,0.00014473,2]
[401280203,1768098641966,-500.0,0.00014473,2]
[401280204,1768098641975,-500.0,0.00014473,2]
[401280205,1768098641984,-500.0,0.00014473,2]
[401280206,1768098641993,-500.0,0.00014473,2]
[401280207,1768098642003,-500.0,0.00014473,2]
[401280208,1768098642011,-500.0,0.00014473,2]
[401280209,1768098642021,-486.742849,0.00014473,2]
[401280210,1768098642030,-500.0890643,0.00014473,2]
[401280211,1768098642040,-500.0,0.00014473,2]
[401280212,1768098642049,-500.0,0.00014473,2]
[401280213,1768098642058,-501.77392466,0.00014473,2]
[401280214,1768098642067,-500.0,0.00014473,2]
[401280215,1768098642078,-163.38938361,0.00014473,2]
[401280216,1768098642088,-8282.96454391,0.00014496,2]
[401280217,1768098642097,-545.25,0.00014498,2]
[401280218,1768098642109,-520.12765794,0.00014498,2]
[401280219,1768098642121,-500.0,0.00014498,2]
[401280220,1768098642132,-500.0,0.00014511,2]
[401280221,1768098642142,-500.0,0.00014518,2]
[401280222,1768098642151,-1016.0,0.00014518,2]
[401280223,1768098642161,-1335.51,0.00014518,2]
[401280224,1768098642170,-188.75821632,0.00014566,2]
[401280225,1768098642180,-500.0,0.00014573,2]
[401280226,1768098642189,-1016.0,0.00014573,2]
[401280227,1768098642199,-200.0,0.00014611,2]
[401280228,1768098642208,-509.03,0.00014624,2]
[401280229,1768098642217,-509.03,0.00014624,2]
[401280230,1768098642227,-500.0,0.00014628,2]